bitfinex/quotes_ETHUSD_20240928
["timestamp","ask_amount","ask_price","bid_price","bid_amount"]
[1727529983960,0.06272789,2660.8,2660.6,3.75852]
[1727529984286,0.06272789,2660.8,2660.7,4.5714]
[1727529984690,2.0,2661.0,2660.8,3.75817]
[1727529986932,2.0,2661.0,2660.8,3.75815]
[1727529987119,2.0,2661.0,2660.9,3.75812]
[1727529988603,0.7566,2661.4,2660.8,0.0751607]
[1727529988804,0.7566,2661.4,2661.1,3.75771]
[1727529989005,0.7566,2661.4,2661.1,7.51546]
[1727529989707,0.7566,2661.4,2661.1,3.75771]
[1727529990346,0.7566,2661.4,2661.1,7.51548]
[1727529990705,0.7566,2661.4,2661.2,3.7577]
[1727529991110,0.7566,2661.4,2661.1,7.51547]
[1727529991523,0.7566,2661.4,2661.1,3.75771]
[1727529992913,0.06137986,2661.3,2661.1,3.75771]
[1727529995512,2.0,2661.2,2660.7,4.57131]
[1727529995754,0.05933362,2661.1,2660.9,3.7581]
[1727529997062,2.0,2660.9,2660.5,3.75865]
[1727529997358,2.0,2660.9,2660.4,3.75881]
[1727529997359,0.88412128,2660.8,2660.4,3.75881]
[1727529997928,0.88412128,2660.8,2660.4,7.51756]
[1727529999261,0.88412128,2660.8,2660.5,3.75863]
[1727530000326,0.88412128,2660.8,2660.6,3.75854]
[1727530001571,0.88412128,2660.8,2660.6,3.75845]
[1727530001572,0.05942128,2660.8,2660.6,3.75845]
[1727530002267,2.0,2661.2,2660.5,4.25029236]
[1727530002268,2.0,2661.2,2661.0,3.75798]
[1727530002563,0.8247,2661.3,2661.0,3.75798]
[1727530003836,7.49,2661.4,2661.0,3.75798]
[1727530004035,7.49,2661.4,2661.3,3.75756]
[1727530004475,7.49,2661.4,2661.2,3.75761]
[1727530005461,7.49,2661.4,2661.3,3.75756]
[1727530005634,7.49,2661.4,2661.2,7.51522]
[1727530006259,2.8247,2661.5,2661.2,3.75761]
[1727530006778,2.8247,2661.5,2661.2,7.51523]
[1727530007262,2.0,2661.5,2661.2,5.313633]
[1727530007662,2.0,2661.5,2661.2,4.56211]
[1727530007867,0.05958929,2661.4,2661.2,4.56211]
[1727530008673,0.05958929,2661.4,2661.2,8.31972]
[1727530008844,0.05958929,2661.4,2661.2,4.56211]
[1727530009570,0.05958929,2661.4,2661.3,3.75756]
[1727530009846,6.58158,2661.8,2661.3,4.589527]
[1727530010181,0.05581919,2661.7,2661.4,3.75738]
[1727530010500,2.8247,2661.8,2661.4,3.75735]
[1727530010636,0.05586302,2661.7,2661.4,3.75735]
[1727530010837,2.8247,2661.8,2661.4,3.75735]
[1727530011051,0.05587763,2661.7,2661.4,3.75733]
[1727530011283,0.8247,2662.0,2661.5,3.75727]
[1727530011501,0.05596527,2661.9,2661.5,3.75719]
[1727530012498,0.05596527,2661.9,2661.6,0.375719]
[1727530012654,0.05596527,2661.9,2661.8,3.75685]
[1727530012853,8.3147,2662.3,2661.8,3.75685]
[1727530013049,0.05630118,2661.9,2661.8,3.75685]
[1727530013255,8.3147,2662.3,2661.8,3.75685]
[1727530013556,0.05630118,2662.2,2661.8,4.44581455]
[1727530013756,0.00630118,2662.2,2661.8,4.44581455]
[1727530013956,0.05463451,2662.2,2661.9,3.75669]
[1727530014206,0.8247,2662.5,2662.1,3.75643]
[1727530014350,9.49,2662.7,2662.3,3.75613]
[1727530014818,13.24559,2662.7,2662.1,7.51268]
[1727530015020,13.19559,2662.7,2662.1,3.75632]
[1727530015197,13.19559,2662.7,2662.1,7.51266]
[1727530015394,13.19559,2662.7,2662.1,7.51267]
[1727530015610,13.19559,2662.7,2662.2,3.75624]
[1727530018019,13.19559,2662.7,2662.1,3.75632]
[1727530018020,5.75559,2662.7,2662.1,3.75632]
[1727530018588,9.51127,2662.7,2662.1,3.75632]
[1727530018900,5.75559,2662.7,2662.1,7.51267]
[1727530019122,5.75559,2662.7,2662.1,3.75632]
[1727530019307,9.51125,2662.7,2662.1,3.75632]
[1727530020708,3.75572,2662.6,2662.1,3.75632]
[1727530021636,0.05143096,2662.5,2662.1,3.75632]
[1727530022542,0.88033096,2662.5,2662.1,3.75632]
[1727530023078,3.75616,2662.3,2661.7,7.51381]
[1727530023242,0.8289,2662.2,2661.7,7.51381]
[1727530023573,0.8289,2662.2,2661.8,0.8688229]
[1727530023733,0.05145286,2662.1,2661.8,0.8688229]
[1727530023930,3.75664,2662.0,2661.5,3.75716]
[1727530024235,0.8289,2661.9,2661.3,3.75747]
[1727530024431,0.88035286,2661.9,2661.3,3.75747]
[1727530024638,0.88035286,2661.9,2661.2,0.7987]
[1727530024855,3.75705,2661.7,2661.2,0.7987]
[1727530025039,3.75705,2661.7,2661.2,1.32735061]
[1727530025263,0.05134336,2661.6,2661.2,1.32735061]
[1727530025464,0.05134336,2661.6,2661.2,4.28635061]
[1727530025679,0.05134336,2661.6,2661.1,3.7577]
[1727530025843,0.8289,2661.5,2661.1,3.7577]
[1727530026043,0.8289,2661.5,2661.2,3.75768]
[1727530026248,0.05134336,2661.4,2661.2,3.75768]
[1727530026449,0.05134336,2661.4,2660.9,0.7987]
[1727530026688,0.05134336,2661.4,2661.3,3.75756]
[1727530027186,0.8117,2661.7,2661.3,3.75756]
[1727530027387,0.05134336,2661.4,2661.3,3.75756]
[1727530027588,0.8117,2661.7,2661.3,3.75756]
[1727530027785,0.05134336,2661.4,2661.3,3.75756]
[1727530027990,0.8117,2661.7,2661.3,3.75756]
[1727530028147,0.05124114,2661.4,2661.3,3.75756]
[1727530028599,0.8117,2661.7,2661.3,3.75756]
[1727530028785,0.05124114,2661.4,2661.3,3.75756]
[1727530028991,0.8117,2661.7,2661.3,3.75756]
[1727530029292,0.05124114,2661.4,2661.3,3.75756]
[1727530029497,0.8117,2661.7,2661.3,3.75756]
[1727530029792,0.05124114,2661.6,2661.3,3.75756]
[1727530032472,0.05124114,2661.6,2661.4,3.75734]
[1727530032727,4.56844,2661.9,2661.3,4.938836]
[1727530033032,0.05091261,2661.8,2661.4,3.7574]
[1727530033636,3.80777261,2661.8,2661.3,4.56308]
[1727530034707,3.80777261,2661.8,2661.3,8.32056]
[1727530035123,3.80777261,2661.8,2661.3,4.56308]
[1727530036313,0.05091261,2661.8,2661.5,3.7572]
[1727530037103,0.05091261,2661.8,2661.6,3.75705]
[1727530039767,0.05091261,2661.8,2661.3,4.56306]
[1727530039972,0.05091261,2661.8,2661.5,3.75726]
[1727530041398,0.05091261,2661.8,2661.5,7.51443]
[1727530041700,0.05091261,2661.8,2661.6,3.75713]
[1727530042000,0.05091261,2661.8,2661.5,4.964919]
[1727530042206,0.05091261,2661.8,2661.7,4.58789]
[1727530042415,0.7578,2662.1,2661.8,3.75678]
[1727530043064,0.7578,2662.1,2661.9,3.75669]
[1727530043362,0.7578,2662.1,2661.9,4.591148]
[1727530043563,0.7578,2662.1,2661.9,3.75669]
[1727530044060,2.7578,2662.4,2661.9,3.75669]
[1727530044490,6.5138,2662.4,2661.9,3.75669]
[1727530044806,10.26994,2662.4,2661.9,3.75669]
[1727530045441,10.26988,2662.4,2661.9,3.75669]
[1727530045735,6.5138,2662.4,2661.9,3.75669]
[1727530047944,2.7578,2662.4,2662.1,3.75642]
[1727530048093,3.75581,2662.6,2662.1,0.8309]
[1727530048094,0.7578,2662.6,2662.1,0.8309]
[1727530048298,0.7578,2662.8,2662.3,3.75606]
[1727530048499,0.7578,2662.8,2662.5,3.75584]
[1727530049113,2.7578,2663.0,2662.6,3.75571]
[1727530049331,2.7578,2663.0,2662.7,3.75555]
[1727530049524,6.51296,2663.0,2662.5,5.00055574]
[1727530051002,6.51296,2663.0,2662.5,8.75634574]
[1727530051197,6.51296,2663.0,2662.5,4.16965574]
[1727530052028,6.51296,2663.0,2662.6,3.75563]
[1727530052029,2.7578,2663.0,2662.6,3.75563]
[1727530052226,2.7578,2663.0,2662.6,4.17259557]
[1727530052431,0.7578,2663.0,2662.7,3.75548]
[1727530052636,11.95275,2663.2,2662.7,7.97712466]
[1727530052831,11.95275,2663.2,2662.7,4.22162466]
[1727530053349,0.04373981,2663.1,2662.7,4.22162466]
[1727530054022,0.04373981,2663.1,2662.9,3.75529]
[1727530055014,0.04373981,2663.1,2663.0,3.75516]
[1727530055259,0.7578,2663.4,2663.0,3.75516]
[1727530055429,0.04435272,2663.1,2663.0,3.75516]
[1727530055750,0.7578,2663.4,2663.0,3.75516]
[1727530055946,0.04435272,2663.1,2663.0,3.75516]
[1727530056132,0.04435272,2663.1,2663.0,4.5491723]
[1727530056711,0.7578,2663.4,2663.0,0.7940123]
[1727530056912,0.04435272,2663.1,2662.9,3.75527]
[1727530057113,4.51243,2663.4,2662.8,0.42967296]
[1727530057307,0.04435272,2663.0,2662.7,5.05251466]
[1727530057728,3.75495,2663.2,2662.7,5.05251466]
[1727530058362,0.04458611,2663.1,2662.7,5.05251466]
[1727530059619,0.04458611,2663.1,2662.8,3.75541]
[1727530059949,3.75477,2663.3,2662.9,0.50524547]
[1727530060174,3.75477,2663.3,2662.8,3.75541]
[1727530060663,0.04507493,2663.2,2662.8,3.75541]
[1727530060868,3.75477,2663.3,2662.8,3.75541]
[1727530061166,0.04507493,2663.1,2662.8,3.75541]
[1727530061368,3.75477,2663.3,2662.8,3.75541]
[1727530061575,3.75477,2663.3,2662.8,4.63622747]
[1727530061868,0.04507493,2663.2,2662.8,4.63622747]
[1727530062330,0.04507493,2663.1,2662.8,4.63622747]
[1727530062531,0.7578,2663.4,2663.0,3.75516]
[1727530062765,0.7578,2663.4,2662.9,4.30952273]
[1727530062968,0.04507493,2663.3,2662.9,8.06474273]
[1727530063167,0.04507493,2663.3,2663.0,0.90206553]
[1727530063970,0.04507493,2663.3,2662.9,4.30944273]
[1727530064575,0.8048,2663.2,2662.7,3.75548]
[1727530064868,0.04512598,2663.1,2662.8,3.75542]
[1727530065070,0.04512598,2663.1,2662.8,4.50651]
[1727530065974,0.04512598,2663.1,2662.9,3.75528]
[1727530066669,0.04512598,2663.1,2663.0,3.75516]
[1727530067032,6.5592,2663.6,2663.0,3.75516]
[1727530067238,0.04506763,2663.1,2663.0,4.663323]
[1727530067471,10.3136,2663.6,2663.0,4.663323]
[1727530067646,0.04506763,2663.1,2663.0,4.663323]
[1727530067850,0.8048,2663.4,2663.0,0.908163]
[1727530068175,0.04506763,2663.1,2662.8,4.50652]
[1727530068491,4.55949,2663.4,2662.8,0.75109]
[1727530068492,0.04514056,2663.0,2662.8,0.75109]
[1727530068786,0.04514056,2663.0,2662.6,3.75572]
[1727530068967,3.75491,2663.2,2662.6,3.75572]
[1727530069131,7.50988,2663.2,2662.7,0.833167]
[1727530069459,0.04511139,2663.1,2662.7,0.833167]
[1727530070237,0.8048,2663.0,2662.7,0.833167]
[1727530070681,0.04511139,2662.9,2662.7,0.833167]
[1727530071184,0.04511139,2662.9,2662.6,3.75572]
[1727530072479,0.04511139,2662.9,2662.7,3.75547]
[1727530072839,0.04511139,2662.9,2662.8,3.75544]
[1727530073578,0.04511139,2662.9,2662.6,3.75572]
[1727530073878,0.04511139,2662.9,2662.7,0.457582]
[1727530074081,0.04511139,2662.9,2662.7,4.213162]
[1727530075979,0.04511139,2662.9,2662.8,3.75544]
[1727530076202,2.832,2663.6,2662.8,0.88219772]
[1727530076339,6.58633,2663.6,2663.1,3.75496]
[1727530077580,10.34075,2663.6,2663.1,3.75496]
[1727530077782,3.75474,2663.3,2662.9,3.7552]
[1727530078078,7.50945,2663.4,2662.9,3.7552]
[1727530078644,3.75474,2663.3,2662.8,3.75536]
[1727530078873,3.75474,2663.3,2662.8,4.6329122]
[1727530079669,7.50942,2663.4,2662.8,4.6329122]
[1727530079870,3.7547,2663.4,2662.8,4.6329122]
[1727530080976,3.7547,2663.4,2662.9,3.75529]
[1727530083188,0.04510411,2663.3,2662.9,7.51048]
[1727530083380,0.04510411,2663.3,2662.9,4.63975142]
[1727530085102,0.04510411,2663.3,2662.9,8.39495142]
[1727530085406,0.04510411,2663.3,2663.0,3.75505]
[1727530085593,4.58646,2663.5,2663.0,3.75505]
[1727530085791,0.04514785,2663.4,2662.9,3.75519]
[1727530088019,0.04514785,2663.4,2663.0,3.75514]
[1727530089309,0.04514785,2663.4,2663.1,4.505983]
[1727530089513,0.04514785,2663.4,2663.1,4.505973]
[1727530089838,0.04506763,2663.3,2663.1,4.505973]
[1727530090203,2.0,2663.6,2663.1,4.505973]
[1727530090430,0.04514056,2663.5,2663.2,0.5298273]
[1727530090636,0.04514056,2663.5,2663.2,3.75479]
[1727530092405,0.7968,2663.4,2663.2,3.75479]
[1727530092605,0.04515514,2663.3,2663.2,3.75479]
[1727530094341,1.17614255,2663.6,2663.2,3.75479]
[1727530094527,0.04522079,2663.3,2663.2,3.75479]
[1727530094724,1.17614255,2663.6,2663.2,3.75479]
[1727530094924,0.04522079,2663.3,2663.2,3.75479]
[1727530095125,1.17614255,2663.6,2663.2,3.75479]
[1727530095328,0.04522079,2663.3,2663.2,3.75479]
[1727530095655,0.04522079,2663.3,2663.1,3.75502]
[1727530095810,1.97294255,2663.5,2663.1,3.75502]
[1727530096007,0.04527184,2663.4,2663.1,3.75502]
[1727530098121,0.04527184,2663.4,2663.2,3.75486]
[1727530099227,1.17614255,2663.6,2663.2,3.75486]
[1727530099414,0.04522079,2663.5,2663.2,3.75486]
[1727530099939,1.22136334,2663.5,2663.2,3.75486]
[1727530104238,0.04522079,2663.5,2663.2,3.75486]
[1727530104679,1.22136334,2663.5,2663.2,3.75486]
[1727530104878,0.04522079,2663.5,2663.2,3.75486]
[1727530106179,0.04522079,2663.5,2663.3,3.75467]
[1727530106645,0.04522079,2663.5,2663.4,3.75459]
[1727530106853,0.04522079,2663.5,2663.4,6.19067272]
[1727530107376,1.17614255,2664.0,2663.7,3.75416]
[1727530107579,1.17614255,2664.0,2663.9,3.75389]
[1727530107732,1.17614255,2664.0,2663.8,4.52801]
[1727530107733,1.17614255,2664.0,2663.8,4.52795]
[1727530108074,1.17614255,2664.0,2663.9,3.75388]
[1727530108273,1.17614255,2664.1,2663.8,4.52795]
[1727530110293,3.17614255,2664.2,2663.9,3.75386]
[1727530110675,3.17614255,2664.2,2663.8,6.11502915]
[1727530110842,3.17614255,2664.2,2663.8,2.36099915]
[1727530111047,3.17614255,2664.2,2663.9,3.75387]
[1727530111387,2.0,2664.2,2663.9,3.75387]
[1727530111594,1.17614255,2664.4,2664.0,3.75372]
[1727530111945,7.72628255,2664.5,2664.0,3.75372]
[1727530112172,3.75319,2664.4,2663.8,6.72645607]
[1727530112381,3.75319,2664.4,2663.8,10.48040607]
[1727530112583,3.75319,2664.4,2663.8,6.72645607]
[1727530112784,3.75319,2664.4,2663.8,10.48040607]
[1727530112983,0.04370142,2664.3,2663.8,10.48040607]
[1727530113205,0.04370142,2664.3,2664.1,3.7536]
[1727530113349,0.04370142,2664.3,2664.0,5.34062915]
[1727530113551,2.797,2664.5,2664.0,5.34062915]
[1727530113748,0.04370142,2664.2,2664.0,5.34062915]
[1727530114058,0.04424864,2664.1,2664.0,5.34062915]
[1727530114265,0.04424864,2664.1,2664.0,5.95209206]
[1727530114483,2.797,2664.5,2664.0,5.95209206]
[1727530114796,0.04424864,2664.1,2664.0,9.70576206]
[1727530114969,2.797,2664.5,2664.0,5.95209206]
[1727530115164,0.04424864,2664.1,2664.0,5.95209206]
[1727530115369,2.797,2664.5,2664.0,5.95209206]
[1727530115865,0.0434582,2664.4,2664.0,5.95209206]
[1727530116067,0.0434582,2664.4,2664.1,4.34878921]
[1727530116607,0.0434582,2664.4,2664.1,0.59520921]
[1727530116994,0.0434582,2664.4,2664.1,4.34873921]
[1727530117198,0.0434582,2664.4,2664.1,0.59520921]
[1727530118301,0.0434582,2664.4,2664.0,5.95209206]
[1727530118475,3.75349,2664.2,2663.8,0.774]
[1727530118891,0.04223889,2664.1,2663.8,4.52796]
[1727530119097,0.04223889,2664.1,2663.9,1.58699915]
[1727530119270,2.797,2664.5,2664.0,3.75375]
[1727530119468,6.55012,2664.5,2664.0,3.75375]
[1727530120290,3.75319,2664.4,2664.0,3.75375]
[1727530123108,6.55014,2664.5,2664.0,3.75375]
[1727530123284,6.55014,2664.5,2664.0,7.50743]
[1727530123491,2.797,2664.5,2664.0,3.75368]
[1727530123810,2.797,2664.5,2664.1,1.58699915]
[1727530123811,0.04223889,2664.4,2664.1,1.58699915]
[1727530123988,0.04223889,2664.4,2664.2,0.7574]
[1727530128873,0.04223889,2664.4,2664.2,4.51081]
[1727530129514,0.04223889,2664.4,2664.3,5.34032915]
[1727530129670,0.04223889,2664.4,2664.3,6.32546006]
[1727530129870,0.04223889,2664.4,2664.3,6.40051813]
[1727530130070,2.0,2664.8,2664.4,3.75318]
[1727530130369,0.04104651,2664.4,2664.3,0.98513091]
[1727530130569,3.75277,2664.7,2664.2,4.51077]
[1727530130894,3.75291,2664.6,2664.2,0.51222379]
[1727530131103,0.7746,2664.5,2664.1,3.75357]
[1727530131287,0.7746,2664.5,2664.2,3.75345]
[1727530131511,0.04104651,2664.4,2664.2,3.75345]
[1727530131811,0.04104651,2664.4,2664.1,3.75358]
[1727530132507,4.52739,2664.7,2664.2,3.75346]
[1727530132690,0.04114876,2664.3,2664.1,0.65491652]
[1727530132894,8.28029,2664.7,2664.1,3.75359]
[1727530133087,0.04114876,2664.2,2664.1,3.75359]
[1727530133268,8.28024,2664.7,2664.1,3.75359]
[1727530133269,4.52739,2664.7,2664.1,3.75359]
[1727530133467,0.04114876,2664.2,2664.1,3.75359]
[1727530133675,4.52739,2664.7,2664.1,4.73875092]
[1727530133899,0.04114876,2664.2,2664.1,3.75359]
[1727530134069,8.28024,2664.7,2664.1,3.75359]
[1727530134270,0.04114876,2664.2,2664.1,3.75359]
[1727530134516,4.52739,2664.7,2664.1,4.73875092]
[1727530134809,8.28023,2664.7,2664.1,3.75359]
[1727530135181,0.04114876,2664.6,2664.1,3.75359]
[1727530137013,0.04114876,2664.6,2664.2,3.75342]
[1727530139232,0.04114876,2664.6,2664.3,3.75331]
[1727530141454,0.04114876,2664.6,2664.5,1.58699915]
[1727530141633,0.04114876,2664.6,2664.4,4.50646]
[1727530141835,3.75258,2664.9,2664.4,4.50646]
[1727530142029,0.8112,2664.8,2664.2,4.73852092]
[1727530142233,0.84870709,2664.8,2664.4,3.75315]
[1727530142672,3.7529,2664.7,2664.3,3.0]
[1727530142871,3.75286,2664.7,2664.3,3.0]
[1727530143068,0.03757285,2664.6,2664.3,3.0]
[1727530143582,0.03757285,2664.6,2664.0,3.75373]
[1727530143583,0.8112,2664.5,2664.0,3.75367]
[1727530143730,0.8112,2664.5,2664.1,3.75358]
[1727530143937,0.03768246,2664.4,2664.3,3.7533]
[1727530144137,0.03768246,2664.4,2664.3,5.41535335]
[1727530144344,0.8112,2664.8,2664.6,3.75286]
[1727530144662,0.8112,2665.1,2664.7,3.75276]
[1727530144862,0.8112,2665.1,2664.9,3.75247]
[1727530146670,0.7875,2665.3,2665.2,3.75206]
[1727530146840,2.7875,2665.5,2665.1,3.75219]
[1727530147838,2.7875,2665.5,2665.0,3.75233]
[1727530148176,4.53929,2665.4,2664.9,7.50494]
[1727530148342,4.53929,2665.4,2664.9,3.75247]
[1727530148781,4.53929,2665.4,2664.9,7.50488]
[1727530149285,0.7875,2665.4,2665.0,3.75234]
[1727530149857,0.7875,2665.4,2664.9,7.50481]
[1727530150046,0.7875,2665.4,2664.9,3.7524]
[1727530150248,4.53932,2665.4,2664.9,3.7524]
[1727530150449,2.0,2665.2,2664.7,3.75268]
[1727530150678,0.7875,2665.1,2664.7,7.50536]
[1727530151059,0.7875,2665.1,2664.4,0.7987]
[1727530151250,0.7875,2665.0,2664.5,3.75293]
[1727530151588,2.7875,2665.2,2665.0,3.75232]
[1727530157880,0.03815006,2665.1,2665.0,3.75232]
[1727530158887,2.7875,2665.2,2665.0,3.75232]
[1727530159265,0.03815006,2665.1,2665.0,4.584034]
[1727530159462,6.54577,2665.7,2665.0,5.07783127]
[1727530159702,0.03815006,2665.6,2665.3,3.7519]
[1727530160265,4.54635,2665.3,2664.8,4.5648]
[1727530160461,4.54635,2665.3,2664.7,3.75273]
[1727530160462,0.7944,2665.3,2664.5,1.267363]
[1727530160667,0.7944,2665.3,2664.9,3.75245]
[1727530161016,0.03815006,2665.2,2664.9,3.75245]
[1727530161302,0.7944,2665.3,2664.7,3.75271]
[1727530161508,0.03815006,2665.1,2665.0,3.75234]
[1727530161712,0.7944,2665.5,2665.0,3.75234]
[1727530161912,0.7944,2665.5,2665.2,3.75201]
[1727530162117,0.7944,2665.5,2664.9,0.8122]
[1727530162118,5.75178,2665.4,2664.9,3.75237]
[1727530162321,5.75178,2665.4,2664.7,0.8122]
[1727530162322,3.75207,2665.2,2664.7,3.75266]
[1727530162624,0.7944,2665.1,2664.7,3.75266]
[1727530162923,0.7944,2665.1,2664.3,3.0]
[1727530162924,2.0,2664.9,2664.3,3.75327]
[1727530163224,2.0,2664.9,2664.5,3.75297]
[1727530163781,0.7944,2664.8,2664.4,3.75315]
[1727530164914,4.54705,2664.8,2664.3,4.05327]
[1727530165133,0.7944,2664.7,2664.3,3.75327]
[1727530166386,0.7944,2664.7,2664.1,3.75349]
[1727530166387,2.0,2664.6,2664.1,3.75349]
[1727530166609,2.0,2664.6,2664.1,7.507]
[1727530166926,2.0,2664.6,2664.1,3.75349]
[1727530167286,2.0,2664.6,2664.2,3.75343]
[1727530168138,2.0,2664.6,2664.1,3.75349]
[1727530168311,2.0,2664.6,2664.3,3.75324]
[1727530169225,2.0,2664.6,2664.3,7.50648]
[1727530169694,2.0,2664.6,2664.2,0.375349]
[1727530169901,2.0,2664.6,2664.2,3.75336]
[1727530171039,2.0,2664.6,2664.3,3.75323]
[1727530171828,0.7944,2664.7,2664.4,3.75315]
[1727530172035,2.7944,2664.9,2664.5,3.75299]
[1727530172339,2.7944,2664.9,2664.6,3.75285]
[1727530172486,2.7944,2664.9,2664.7,7.50544]
[1727530172487,0.7944,2664.9,2664.7,7.50544]
[1727530172687,0.7944,2665.1,2664.7,3.75269]
[1727530172896,0.7944,2665.1,2664.7,3.75274]
[1727530172897,0.03766787,2664.8,2664.7,3.75274]
[1727530173194,0.7944,2665.1,2664.7,4.47140573]
[1727530173552,0.7944,2665.1,2664.8,3.7526]
[1727530174028,0.7944,2665.1,2664.7,3.75274]
[1727530175324,2.0,2665.2,2665.0,3.75234]
[1727530177606,2.0,2665.6,2665.0,3.75234]
[1727530177803,4.57193,2665.5,2665.0,0.750487]
[1727530178049,0.8202,2665.2,2664.8,3.75258]
[1727530178240,0.8202,2665.2,2664.8,7.50511]
[1727530178447,0.8202,2665.2,2664.8,8.72137034]
[1727530179408,0.8202,2665.2,2664.9,3.75245]
[1727530180018,2.0,2665.3,2665.0,3.75231]
[1727530180218,1.17614255,2665.6,2665.1,3.75216]
[1727530180219,0.8202,2665.4,2665.1,3.75216]
[1727530180819,0.8202,2665.4,2665.0,3.75231]
[1727530182803,0.8202,2665.4,2665.0,7.50457]
[1727530184210,0.8202,2665.4,2665.0,3.75226]
[1727530187935,0.03828153,2665.3,2665.0,3.75226]
[1727530189913,2.80388153,2665.3,2665.0,4.50275]
[1727530190252,2.80388153,2665.3,2665.0,3.75227]
[1727530193162,2.80388153,2665.3,2664.9,7.50478]
[1727530193518,2.80388153,2665.3,2664.9,3.75238]
[1727530193861,2.80388153,2665.3,2665.0,3.75231]
[1727530197225,2.80388153,2665.3,2665.1,3.75219]
[1727530197629,2.80388153,2665.3,2665.0,3.75233]
[1727530198727,2.80388153,2665.3,2665.0,3.75226]
[1727530199267,2.80388153,2665.3,2665.1,3.75218]
[1727530200126,2.80388153,2665.3,2665.0,3.75226]
[1727530200326,2.80388153,2665.3,2665.0,7.50452]
[1727530200565,2.80388153,2665.3,2665.1,3.75219]
[1727530201375,2.80388153,2665.3,2665.0,3.75226]
[1727530202440,2.80388153,2665.3,2665.1,3.75216]
[1727530202888,2.80388153,2665.3,2665.2,3.75206]
[1727530203068,0.03828153,2665.3,2665.2,3.75206]
[1727530212687,0.03828153,2665.3,2665.1,4.127416]
[1727530212869,0.03828153,2665.3,2665.1,7.50432]
[1727530213189,0.03828153,2665.3,2665.2,3.75206]
[1727530214788,0.03828153,2665.3,2665.2,4.55356]
[1727530215003,0.03828153,2665.3,2665.2,3.75206]
[1727530215291,0.03828153,2665.3,2665.2,4.582629]
[1727530217388,1.17614255,2665.6,2665.3,3.75189]
[1727530218050,1.17614255,2665.6,2665.4,3.75177]
[1727530219158,4.00284255,2665.7,2665.5,3.75163]
[1727530219502,4.00284255,2665.7,2665.5,4.582002]
[1727530219503,2.0,2665.7,2665.5,4.582002]
[1727530219681,2.0,2665.7,2665.5,8.333552]
[1727530219994,2.0,2665.7,2665.5,4.581922]
[1727530221086,2.0,2665.7,2665.5,3.75155]
[1727530223474,2.0,2665.7,2665.5,7.50312]
[1727530223908,2.0,2665.7,2665.5,3.75155]
[1727530224278,2.0,2665.7,2665.4,3.75177]
[1727530224787,2.0,2665.7,2665.2,4.582609]
[1727530224788,4.57018,2665.6,2665.2,3.75204]
[1727530224988,4.57018,2665.6,2665.0,3.75224]
[1727530224989,3.75176,2665.5,2665.0,3.75224]
[1727530225303,0.8186,2665.4,2665.0,3.75224]
[1727530225671,0.8186,2665.4,2665.1,3.75208]
[1727530225908,0.8186,2665.4,2665.2,3.75202]
[1727530226120,1.99474255,2665.6,2665.1,3.75208]
[1727530226419,1.99474255,2665.6,2665.4,3.75172]
[1727530226586,3.99474255,2665.8,2665.4,7.50339]
[1727530226799,2.8186,2665.8,2665.5,3.75161]
[1727530227786,2.0,2665.8,2665.5,3.75161]
[1727530229117,2.0,2665.8,2665.6,3.75148]
[1727530229919,2.0,2665.8,2665.5,3.75163]
[1727530231809,2.0,2665.8,2665.5,3.75154]
[1727530232326,0.03661122,2665.7,2665.5,3.75154]
[1727530232688,2.0,2665.8,2665.5,3.75154]
[1727530232888,0.03661122,2665.6,2665.5,3.75154]
[1727530233090,2.0,2665.8,2665.5,4.64446178]
[1727530233285,0.03661122,2665.6,2665.5,4.64446178]
[1727530233524,2.0,2665.8,2665.5,4.64446178]
[1727530233720,0.03661122,2665.6,2665.5,3.75154]
[1727530234030,2.0,2665.8,2665.5,3.75154]
[1727530234212,0.03661122,2665.6,2665.5,3.75154]
[1727530234415,2.0,2665.8,2665.5,3.75154]
[1727530234729,0.03661122,2665.7,2665.5,3.75154]
[1727530235336,0.03661122,2665.6,2665.5,3.75154]
[1727530235718,2.0,2665.8,2665.5,3.75154]
[1727530236032,0.03661122,2665.6,2665.4,3.75178]
[1727530236184,2.0,2665.8,2665.3,5.1776928]
[1727530236393,0.03661122,2665.7,2665.5,3.75161]
[1727530236893,0.03661122,2665.6,2665.5,3.75161]
[1727530237089,2.0,2665.8,2665.5,3.75161]
[1727530237296,0.03661122,2665.6,2665.5,3.75161]
[1727530237627,2.0,2665.8,2665.5,4.65068801]
[1727530237791,0.03661122,2665.6,2665.5,3.75161]
[1727530238188,1.17614255,2665.9,2665.5,3.75161]
[1727530238628,0.03661122,2665.8,2665.5,3.75161]
[1727530239906,0.03661122,2665.8,2665.4,3.75174]
[1727530240108,3.75157,2665.6,2665.0,0.78558037]
[1727530240300,0.7655,2665.4,2665.0,3.75227]
[1727530240690,0.03668425,2665.3,2665.0,3.75227]
[1727530241027,0.03668425,2665.3,2665.0,5.0416128]
[1727530242097,0.03668425,2665.3,2665.1,3.75217]
[1727530242551,0.03668425,2665.3,2665.1,3.75212]
[1727530243227,0.03668425,2665.3,2665.2,3.75206]
[1727530243635,0.03668425,2665.3,2665.1,3.75212]
[1727530243805,0.03668425,2665.3,2665.1,7.50423]
[1727530244009,0.03668425,2665.3,2665.1,3.75211]
[1727530244412,0.03668425,2665.3,2665.1,7.50422]
[1727530244720,0.03668425,2665.3,2665.1,3.75211]
[1727530245099,0.03668425,2665.3,2665.2,3.75206]
[1727530248504,1.17614255,2665.5,2665.2,3.75206]
[1727530248697,0.03667695,2665.3,2665.2,3.75206]
[1727530248901,1.17614255,2665.5,2665.2,3.75206]
[1727530249135,0.03667695,2665.3,2665.1,3.7522]
[1727530249315,1.17614255,2665.5,2665.3,3.75187]
[1727530249635,2.00514255,2665.6,2665.3,3.75187]
[1727530249941,0.829,2665.6,2665.3,3.75187]
[1727530250107,0.829,2665.6,2665.3,3.75181]